fUSD/lending_fUSD_20250616
["ID","MTS","AMOUNT","RATE_DAILY","PERIOD"]
[366082496,1750055446448,-491.9384979,0.00016438,2]
[366082498,1750055446458,-527.2,0.00016438,2]
[366082500,1750055446468,-490.0,0.00016438,2]
[366082502,1750055446478,-794.4,0.00016438,2]
[366082504,1750055446488,-220.275398,0.00016438,2]
[366082506,1750055446498,-490.0,0.00016438,2]
[366082508,1750055446508,-220.275398,0.00016438,2]
[366082510,1750055446518,-220.275398,0.00016438,2]
[366082512,1750055446528,-220.275398,0.00016438,2]
[366082514,1750055446538,-495.1496452,0.00016438,2]
[366082516,1750055446547,-490.0,0.00016438,2]
[366082518,1750055446557,-494.31956412,0.00016438,2]
[366082520,1750055446566,-220.275398,0.00016438,2]
[366082522,1750055446576,-1248.08,0.00016438,2]
[366082524,1750055446585,-220.275398,0.00016438,2]
[366082526,1750055446595,-681.54,0.00016438,2]
[366082528,1750055446605,-490.0,0.00016438,2]
[366082530,1750055446614,-494.76089771,0.00016438,2]
[366082532,1750055446624,-220.275398,0.00016438,2]
[366082534,1750055446633,-151.0,0.00016438,2]
[366082536,1750055446643,-151.0,0.00016438,2]
[366082538,1750055446652,-220.275398,0.00016438,2]
[366082540,1750055446662,-492.06,0.00016438,2]
[366082542,1750055446672,-151.0,0.00016438,2]
[366082561,1750055446803,-151.0,0.00016438,2]
[366082566,1750055446890,-490.0,0.00016438,2]
[366082568,1750055446900,-493.33319638,0.00016438,2]
[366082569,1750055446910,-490.0,0.00016438,2]
[366082570,1750055446919,-493.89243088,0.00016438,2]
[366082572,1750055446929,-490.0,0.00016438,2]
[366082574,1750055446939,-498.28930664,0.00016438,2]
[366082576,1750055446948,-845.11,0.00016438,2]
[366082578,1750055446958,-496.59067642,0.00016438,2]
[366082579,1750055446967,-490.0,0.00016438,2]
[366082580,1750055446976,-500.0,0.00016438,2]
[366082581,1750055446986,-1763.32,0.00016438,2]
[366082582,1750055446996,-490.0,0.00016438,2]
[366082583,1750055447005,-499.03907359,0.00016438,2]
[366082584,1750055447015,-1191.55,0.00016438,2]
[366082585,1750055447024,-490.0,0.00016438,2]
[366082586,1750055447034,-755.97,0.00016438,2]
[366082587,1750055447043,-505.38804211,0.00016438,2]
[366082588,1750055447052,-151.0,0.00016438,2]
[366082589,1750055447061,-151.0,0.00016438,2]
[366082590,1750055447071,-490.0,0.00016438,2]
[366082591,1750055447080,-490.0,0.00016438,2]
[366082592,1750055447090,-151.0,0.00016438,2]
[366082593,1750055447099,-490.0,0.00016438,2]
[366082594,1750055447108,-151.0,0.00016438,2]
[366082595,1750055447118,-490.0,0.00016438,2]
[366082596,1750055447127,-991.36,0.00016438,2]
[366082597,1750055447136,-490.0,0.00016438,2]
[366082598,1750055447146,-490.0,0.00016438,2]
[366082599,1750055447155,-490.0,0.00016438,2]
[366082600,1750055447164,-503.7446977,0.00016438,2]
[366082601,1750055447173,-151.0,0.00016438,2]
[366082602,1750055447182,-151.0,0.00016438,2]
[366082603,1750055447192,-622.77,0.00016438,2]
[366082604,1750055447202,-151.0,0.00016438,2]
[366082605,1750055447211,-151.0,0.00016438,2]
[366082606,1750055447221,-489.91118686,0.00016438,2]
[366082607,1750055447232,-490.0,0.00016438,2]
[366082608,1750055447243,-490.0,0.00016438,2]
[366082609,1750055447252,-490.0,0.00016438,2]
[366082610,1750055447262,-490.0,0.00016438,2]
[366082611,1750055447272,-490.0,0.00016438,2]
[366082612,1750055447281,-568.46249666,0.00016438,2]
[366082613,1750055447291,-490.0,0.00016438,2]
[366082614,1750055447300,-490.0,0.00016438,2]
[366082615,1750055447309,-494.06517075,0.00016438,2]
[366082616,1750055447320,-490.0,0.00016438,2]
[366082617,1750055447329,-506.4373022,0.00016438,2]
[366082618,1750055447340,-709.1,0.00016438,2]
[366082619,1750055447350,-490.0,0.00016438,2]
[366082620,1750055447359,-494.50744166,0.00016438,2]
[366082621,1750055447368,-623.50799615,0.00016438,2]
[366082622,1750055447378,-151.0,0.00016438,2]
[366082623,1750055447387,-490.0,0.00016438,2]
[366082624,1750055447397,-490.0,0.00016438,2]
[366082625,1750055447406,-151.0,0.00016438,2]
[366082626,1750055447415,-151.0,0.00016438,2]
[366082627,1750055447425,-571.67,0.00016438,2]
[366082628,1750055447435,-151.0,0.00016438,2]
[366082629,1750055447444,-490.81088513,0.00016438,2]
[366082630,1750055447454,-490.0,0.00016438,2]
[366082631,1750055447463,-498.84814647,0.00016438,2]
[366082632,1750055447473,-151.0,0.00016438,2]
[366082633,1750055447483,-254.617106,0.00016438,2]
[366082634,1750055447493,-1117.57,0.00016438,2]
[366082635,1750055447502,-501.18,0.00016438,2]
[366082636,1750055447511,-490.0,0.00016438,2]
[366082637,1750055447521,-490.0,0.00016438,2]
[366082638,1750055447531,-495.3466602,0.00016438,2]
[366082639,1750055447541,-490.0,0.00016438,2]
[366082640,1750055447550,-1203.67,0.00016438,2]
[366082641,1750055447559,-490.0,0.00016438,2]
[366082642,1750055447568,-490.0,0.00016438,2]
[366082643,1750055447578,-490.0,0.00016438,2]
[366082644,1750055447588,-494.22247669,0.00016438,2]
[366082645,1750055447598,-490.0,0.00016438,2]
[366082646,1750055447607,-430.0,0.00016438,2]
[366082647,1750055447617,-491.400113,0.00016438,2]
[366082648,1750055447627,-490.0,0.00016438,2]
[366082649,1750055447637,-493.20890796,0.00016438,2]
[366082650,1750055447647,-545.35,0.00016438,2]
[366082651,1750055447657,-1080.96,0.00016438,2]
[366082652,1750055447668,-279.84293113,0.00016438,2]
[366082653,1750055447677,-490.0,0.00016438,2]
[366082654,1750055447686,-500.0,0.00016438,2]
[366082655,1750055447698,-490.0,0.00016438,2]
[366082656,1750055447708,-500.0,0.00016438,2]
[366082657,1750055447718,-493.52618405,0.00016438,2]
[366082658,1750055447728,-683.86,0.00016438,2]
[366082659,1750055447739,-490.0,0.00016438,2]
[366082660,1750055447748,-639.68,0.00016438,2]
[366082661,1750055447758,-490.0,0.00016438,2]
[366082662,1750055447769,-768.83,0.00016438,2]
[366082663,1750055447780,-492.18734899,0.00016438,2]
[366082664,1750055447790,-490.0,0.00016438,2]
[366082665,1750055447800,-490.0,0.00016438,2]
[366082666,1750055447810,-490.0,0.00016438,2]
[366082667,1750055447820,-508.31,0.00016438,2]
[366082668,1750055447830,-490.0,0.00016438,2]
[366082669,1750055447839,-490.0,0.00016438,2]
[366082670,1750055447849,-623.61,0.00016438,2]
[366082671,1750055447859,-663.75,0.00016438,2]
[366082672,1750055447868,-1628.34,0.00016438,2]
[366082673,1750055447878,-495.21027509,0.00016438,2]
[366082674,1750055447888,-450.0,0.00016438,2]
[366082675,1750055447898,-490.0,0.00016438,2]
[366082676,1750055447909,-490.0,0.00016438,2]
[366082677,1750055447919,-1316.29,0.00016438,2]
[366082678,1750055447929,-1255.18,0.00016438,2]
[366082679,1750055447940,-587.28,0.00016438,2]
[366082680,1750055447950,-490.0,0.00016438,2]
[366082681,1750055447960,-1479.11,0.00016438,2]
[366082682,1750055447970,-490.0,0.00016438,2]
[366082683,1750055447980,-1578.86,0.00016438,2]
[366082684,1750055447990,-490.0,0.00016438,2]
[366082685,1750055448000,-151.0,0.00016438,2]
[366082686,1750055448010,-151.0,0.00016438,2]
[366082687,1750055448020,-151.0,0.00016438,2]
[366082688,1750055448030,-490.0,0.00016438,2]
[366082689,1750055448040,-151.0,0.00016438,2]
[366082690,1750055448050,-151.0,0.00016438,2]
[366082691,1750055448060,-490.0,0.00016438,2]
[366082692,1750055448071,-494.55262997,0.00016438,2]
[366082693,1750055448081,-754.05,0.00016438,2]
[366082694,1750055448091,-490.0,0.00016438,2]
[366082695,1750055448100,-151.0,0.00016438,2]
[366082696,1750055448110,-151.0,0.00016438,2]
[366082697,1750055448120,-805.31,0.00016438,2]
[366082698,1750055448130,-1830.83,0.00016438,2]
[366082699,1750055448140,-728.54,0.00016438,2]
[366082700,1750055448151,-535.37,0.00016438,2]
[366082701,1750055448161,-1510.09,0.00016438,2]
[366082702,1750055448170,-490.0,0.00016438,2]
[366082703,1750055448180,-642.15,0.00016438,2]
[366082704,1750055448191,-490.0,0.00016438,2]
[366082705,1750055448201,-490.91705611,0.00016438,2]
[366082706,1750055448211,-565.94,0.00016438,2]
[366082707,1750055448221,-704.96,0.00016438,2]
[366082708,1750055448232,-495.5283938,0.00016438,2]
[366082709,1750055448242,-520.98,0.00016438,2]
[366082710,1750055448253,-490.0,0.00016438,2]
[366082711,1750055448263,-490.0,0.00016438,2]
[366082712,1750055448273,-490.0,0.00016438,2]
[366082713,1750055448283,-151.0,0.00016438,2]
[366082714,1750055448294,-490.0,0.00016438,2]
[366082715,1750055448304,-151.0,0.00016438,2]
[366082716,1750055448314,-151.0,0.00016438,2]
[366082717,1750055448324,-151.0,0.00016438,2]
[366082718,1750055448334,-717.67,0.00016438,2]
[366082719,1750055448343,-494.55406496,0.00016438,2]
[366082720,1750055448354,-607.08,0.00016438,2]
[366082721,1750055448364,-1886.94,0.00016438,2]
[366082722,1750055448375,-1098.46,0.00016438,2]
[366082723,1750055448385,-170.12385207,0.00016438,2]
[366082724,1750055448396,-490.0,0.00016438,2]
[366082725,1750055448406,-252.720699,0.00016438,2]
[366082726,1750055448416,-489.56399469,0.00016438,2]
[366082727,1750055448427,-490.0,0.00016438,2]
[366082728,1750055448438,-490.0,0.00016438,2]
[366082729,1750055448448,-527.96,0.00016438,2]
[366082730,1750055448458,-1840.76,0.00016438,2]
[366082731,1750055448467,-495.42036203,0.00016438,2]
[366082732,1750055448477,-1095.34,0.00016438,2]
[366082733,1750055448488,-490.0,0.00016438,2]
[366082734,1750055448498,-490.0,0.00016438,2]
[366082735,1750055448508,-1236.18,0.00016438,2]
[366082736,1750055448518,-846.98,0.00016438,2]
[366082737,1750055448528,-1158.57,0.00016438,2]
[366082738,1750055448538,-840.63,0.00016438,2]
[366082739,1750055448548,-151.0,0.00016438,2]
[366082740,1750055448558,-576.45,0.00016438,2]
[366082741,1750055448567,-151.0,0.00016438,2]
[366082742,1750055448577,-151.0,0.00016438,2]
[366082743,1750055448588,-151.0,0.00016438,2]
[366082744,1750055448598,-490.0,0.00016438,2]
[366082745,1750055448608,-490.0,0.00016438,2]
[366082746,1750055448617,-1150.93,0.00016438,2]
[366082747,1750055448628,-490.0,0.00016438,2]
[366082748,1750055448637,-490.0,0.00016438,2]
[366082749,1750055448648,-1028.14,0.00016438,2]
[366082750,1750055448658,-649.25,0.00016438,2]
[366082751,1750055448668,-490.0,0.00016438,2]
[366082752,1750055448678,-490.0,0.00016438,2]
[366082753,1750055448688,-493.80287435,0.00016438,2]
[366082754,1750055448703,-492.33115449,0.00016438,2]
[366082755,1750055448713,-151.0,0.00016438,2]
[366082756,1750055448723,-490.0,0.00016438,2]
[366082757,1750055448733,-151.0,0.00016438,2]
[366082758,1750055448746,-291.48554,0.00016438,2]
[366082759,1750055448756,-462.24388347,0.00016438,2]
[366082760,1750055448767,-490.0,0.00016438,2]
[366082761,1750055448778,-709.86,0.00016438,2]
[366082762,1750055448788,-1332.07,0.00016438,2]
[366082763,1750055448798,-495.73973931,0.00016438,2]
[366082764,1750055448808,-673.64,0.00016438,2]
[366082765,1750055448818,-490.0,0.00016438,2]
[366082766,1750055448828,-676.01,0.00016438,2]
[366082767,1750055448838,-503.16139953,0.00016438,2]
[366082768,1750055448849,-490.0,0.00016438,2]
[366082769,1750055448859,-490.0,0.00016438,2]
[366082770,1750055448870,-490.0,0.00016438,2]
[366082771,1750055448880,-1263.98,0.00016438,2]
[366082772,1750055448891,-1344.73,0.00016438,2]
[366082773,1750055448900,-151.0,0.00016438,2]
[366082774,1750055448910,-151.0,0.00016438,2]
[366082775,1750055448921,-151.0,0.00016438,2]
[366082776,1750055448931,-496.98902866,0.00016438,2]
[366082777,1750055448941,-151.0,0.00016438,2]
[366082778,1750055448951,-841.11,0.00016438,2]
[366082779,1750055448960,-151.0,0.00016438,2]
[366082780,1750055448970,-317.11699,0.00016438,2]
[366082781,1750055448981,-1537.32,0.00016438,2]
[366082782,1750055448993,-317.11699,0.00016438,2]
[366082783,1750055449003,-551.72,0.00016438,2]
[366082784,1750055449013,-317.11699,0.00016438,2]
[366082785,1750055449024,-490.73451155,0.00016438,2]
[366082786,1750055449035,-560.65,0.00016438,2]
[366082787,1750055449045,-317.11699,0.00016438,2]
[366082788,1750055449055,-490.0,0.00016438,2]
[366082789,1750055449064,-290.767925,0.00016438,2]
[366082790,1750055449075,-284.184316,0.00016438,2]
[366082791,1750055449085,-490.0,0.00016438,2]
[366082792,1750055449094,-317.11699,0.00016438,2]
[366082793,1750055449104,-317.11699,0.00016438,2]
[366082794,1750055449113,-317.11699,0.00016438,2]
[366082795,1750055449123,-1584.130113,0.00016438,2]
[366082796,1750055449478,-1584.130113,0.00016438,2]
[366082797,1750055449507,-618.84,0.00016438,2]
[366082798,1750055449518,-1584.130113,0.00016438,2]
[366082799,1750055449528,-1182.27,0.00016438,2]
[366082800,1750055449537,-317.11699,0.00016438,2]
[366082801,1750055449548,-490.0,0.00016438,2]
[366082802,1750055449558,-1584.130113,0.00016438,2]
[366082803,1750055449568,-490.0,0.00016438,2]
[366082804,1750055449579,-1584.130113,0.00016438,2]
[366082805,1750055449588,-490.0,0.00016438,2]
[366082806,1750055449598,-1584.130113,0.00016438,2]
[366082807,1750055449608,-495.46582422,0.00016438,2]
[366082808,1750055449618,-1584.130113,0.00016438,2]
[366082809,1750055449628,-1584.130113,0.00016438,2]
[366082810,1750055449638,-151.0,0.00016438,2]
[366082811,1750055449647,-151.0,0.00016438,2]
[366082812,1750055449658,-492.98973163,0.00016438,2]
[366082813,1750055449669,-223.943319,0.00016438,2]
[366082814,1750055449678,-490.0,0.00016438,2]
[366082815,1750055449688,-1216.81,0.00016438,2]
[366082816,1750055449699,-490.0,0.00016438,2]
[366082817,1750055449711,-665.599393,0.00016438,2]
[366082818,1750055449721,-665.599393,0.00016438,2]
[366082819,1750055449730,-1647.46,0.00016438,2]
[366082820,1750055449740,-490.0,0.00016438,2]
[366082821,1750055449751,-665.599393,0.00016438,2]
[366082822,1750055449760,-665.599393,0.00016438,2]
[366082823,1750055449771,-1331.01,0.00016438,2]
[366082824,1750055449782,-490.0,0.00016438,2]
[366082825,1750055449792,-151.0,0.00016438,2]
[366082826,1750055449802,-733.69,0.00016438,2]
[366082827,1750055449812,-493.19270253,0.00016438,2]
[366082828,1750055449821,-665.599393,0.00016438,2]
[366082829,1750055449831,-665.599393,0.00016438,2]
[366082830,1750055449841,-490.0,0.00016438,2]
[366082831,1750055449850,-2539.69,0.00016438,2]
[366082832,1750055449860,-665.599393,0.00016438,2]
[366082833,1750055449871,-498.06047824,0.00016438,2]
[366082834,1750055449881,-665.599393,0.00016438,2]
[366082835,1750055449891,-489.26984292,0.00016438,2]
[366082836,1750055449901,-490.0,0.00016438,2]
[366082837,1750055449911,-500.0,0.00016438,2]
[366082838,1750055449920,-490.0,0.00016438,2]
[366082839,1750055449930,-920.66,0.00016438,2]
[366082840,1750055449940,-490.0,0.00016438,2]
[366082841,1750055449950,-499.81602127,0.00016438,2]
[366082842,1750055449960,-490.0,0.00016438,2]
[366082843,1750055449969,-583.67986013,0.00016438,2]
[366082844,1750055449979,-627.78,0.00016438,2]
[366082845,1750055449988,-493.67921577,0.00016438,2]
[366082846,1750055449999,-490.0,0.00016438,2]
[366082847,1750055450009,-460.65241337,0.00016438,2]
[366082848,1750055450019,-886.18,0.00016438,2]
[366082849,1750055450029,-582.5,0.00016438,2]
[366082850,1750055450039,-521.58527005,0.00016438,2]
[366082851,1750055450049,-490.0,0.00016438,2]
[366082852,1750055450060,-710.94,0.00016438,2]
[366082853,1750055450071,-504.99,0.00016438,2]
[366082854,1750055450081,-495.07824544,0.00016438,2]
[366082855,1750055450091,-545.96,0.00016438,2]
[366082856,1750055450100,-518.83,0.00016438,2]
[366082857,1750055450110,-1204.9,0.00016438,2]
[366082858,1750055450120,-491.18957131,0.00016438,2]
[366082859,1750055450131,-550.19,0.00016438,2]
[366082860,1750055450141,-688.42,0.00016438,2]
[366082861,1750055450151,-172.989986,0.00016438,2]
[366082862,1750055450161,-172.989986,0.00016438,2]
[366082863,1750055450170,-172.989986,0.00016438,2]
[366082864,1750055450180,-172.989986,0.00016438,2]
[366082865,1750055450190,-172.989986,0.00016438,2]
[366082866,1750055450199,-1347.566303,0.00016438,2]
[366082867,1750055450209,-1347.566303,0.00016438,2]
[366082868,1750055450219,-1347.566303,0.00016438,2]
[366082869,1750055450228,-1347.566303,0.00016438,2]
[366082870,1750055450239,-172.989986,0.00016438,2]
[366082871,1750055450249,-172.989986,0.00016438,2]
[366082872,1750055450259,-172.989986,0.00016438,2]
[366082873,1750055450268,-172.989986,0.00016438,2]
[366082874,1750055450278,-490.0,0.00016438,2]
[366082875,1750055450288,-172.989986,0.00016438,2]
[366082876,1750055450298,-1347.566303,0.00016438,2]
[366082877,1750055450308,-490.0,0.00016438,2]
[366082878,1750055450318,-1347.566303,0.00016438,2]
[366082879,1750055450327,-1347.566303,0.00016438,2]
[366082880,1750055450337,-526.96,0.00016438,2]
[366082881,1750055450347,-490.0,0.00016438,2]
[366082882,1750055450357,-1347.566303,0.00016438,2]
[366082883,1750055450367,-490.0,0.00016438,2]
[366082884,1750055450377,-490.0,0.00016438,2]
[366082885,1750055450387,-570.6,0.00016438,2]
[366082886,1750055450399,-1203.21,0.00016438,2]
[366082887,1750055450408,-490.0,0.00016438,2]
[366082888,1750055450418,-1042.79,0.00016438,2]
[366082889,1750055450428,-490.0,0.00016438,2]
[366082890,1750055450438,-226.22894884,0.00016438,2]
[366082891,1750055450448,-490.0,0.00016438,2]
[366082892,1750055450458,-490.0,0.00016438,2]
[366082893,1750055450468,-490.0,0.00016438,2]
[366082894,1750055450477,-497.82487418,0.00016438,2]
[366082895,1750055450487,-1723.18,0.00016438,2]
[366082896,1750055450498,-500.0,0.00016438,2]
[366082897,1750055450507,-500.0,0.00016438,2]
[366082898,1750055450517,-547.65834527,0.00016438,2]
[366082899,1750055450527,-490.0,0.00016438,2]
[366082900,1750055450537,-490.0,0.00016438,2]
[366082901,1750055450547,-490.0,0.00016438,2]
[366082902,1750055450556,-490.0,0.00016438,2]
[366082903,1750055450566,-2228.07,0.00016438,2]
[366082904,1750055450576,-490.0,0.00016438,2]
[366082905,1750055450586,-701.21,0.00016438,2]
[366082906,1750055450595,-523.6,0.00016438,2]
[366082907,1750055450604,-490.63,0.00016438,2]
[366082908,1750055450614,-490.0,0.00016438,2]
[366082909,1750055450623,-490.0,0.00016438,2]
[366082910,1750055450633,-623.19,0.00016438,2]
[366082911,1750055450642,-500.97,0.00016438,2]
[366082912,1750055450651,-2403.2,0.00016438,2]
[366082913,1750055450661,-572.97,0.00016438,2]
[366082914,1750055450671,-490.0,0.00016438,2]
[366082915,1750055450680,-490.0,0.00016438,2]
[366082916,1750055450690,-490.0,0.00016438,2]
[366082917,1750055450702,-490.0,0.00016438,2]
[366082918,1750055450712,-490.0,0.00016438,2]
[366082919,1750055450722,-212.54894843,0.00016438,2]
[366082920,1750055450731,-2001.54,0.00016438,2]
[366082921,1750055450743,-572.48,0.00016438,2]
[366082922,1750055450752,-490.0,0.00016438,2]
[366082923,1750055450762,-554.22,0.00016438,2]
[366082924,1750055450773,-654.37,0.00016438,2]
[366082925,1750055450783,-497.04227004,0.00016438,2]
[366082926,1750055450793,-1846.38,0.00016438,2]
[366082927,1750055450803,-490.0,0.00016438,2]
[366082928,1750055450813,-151.0,0.00016438,2]
[366082929,1750055450823,-561.1,0.00016438,2]
[366082930,1750055450832,-151.0,0.00016438,2]
[366082931,1750055450842,-151.0,0.00016438,2]
[366082932,1750055450852,-151.0,0.00016438,2]
[366082933,1750055450862,-151.0,0.00016438,2]
[366082934,1750055450871,-491.72315563,0.00016438,2]
[366082935,1750055450881,-500.0,0.00016438,2]
[366082936,1750055450891,-1299.46,0.00016438,2]
[366082937,1750055450900,-490.0,0.00016438,2]
[366082938,1750055450910,-490.0,0.00016438,2]
[366082939,1750055450920,-151.0,0.00016438,2]
[366082940,1750055450929,-533.9843563,0.00016438,2]
[366082941,1750055450939,-151.0,0.00016438,2]
[366082942,1750055450949,-213.406953,0.00016438,2]
[366082943,1750055450959,-491.48571085,0.00016438,2]
[366082944,1750055450968,-655.91,0.00016438,2]
[366082945,1750055450978,-889.17,0.00016438,2]
[366082946,1750055450988,-490.0,0.00016438,2]
[366082947,1750055450999,-2800.52,0.00016438,2]
[366082948,1750055451009,-1687.45,0.00016438,2]
[366082949,1750055451019,-1075.75,0.00016438,2]
[366082950,1750055451029,-1038.05,0.00016438,2]
[366082951,1750055451041,-490.0,0.00016438,2]
[366082952,1750055451051,-1473.97,0.00016438,2]
[366082953,1750055451061,-519.49,0.00016438,2]
[366082954,1750055451071,-1359.2,0.00016438,2]
[366082955,1750055451080,-1142.09,0.00016438,2]
[366082956,1750055451090,-490.0,0.00016438,2]
[366082957,1750055451100,-160.885878,0.00016438,2]
[366082958,1750055451110,-567.965759,0.00016438,2]
[366082959,1750055451120,-567.965759,0.00016438,2]
[366082960,1750055451130,-567.965759,0.00016438,2]
[366082961,1750055451140,-490.0,0.00016438,2]
[366082962,1750055451150,-567.965759,0.00016438,2]
[366082963,1750055451161,-160.885878,0.00016438,2]
[366082964,1750055451171,-160.885878,0.00016438,2]
[366082965,1750055451180,-567.965759,0.00016438,2]
[366082966,1750055451190,-151.0,0.00016438,2]
[366082967,1750055451200,-160.885878,0.00016438,2]
[366082968,1750055451210,-151.0,0.00016438,2]
[366082969,1750055451220,-160.885878,0.00016438,2]
[366082970,1750055451230,-490.0,0.00016438,2]
[366082971,1750055451240,-151.0,0.00016438,2]
[366082972,1750055451251,-151.0,0.00016438,2]
[366082973,1750055451261,-151.0,0.00016438,2]
[366082974,1750055451271,-641.33,0.00016438,2]
[366082975,1750055451281,-567.965759,0.00016438,2]
[366082976,1750055451291,-567.965759,0.00016438,2]
[366082977,1750055451301,-160.885878,0.00016438,2]
[366082978,1750055451311,-160.885878,0.00016438,2]
[366082979,1750055451320,-160.885878,0.00016438,2]
[366082980,1750055451330,-567.965759,0.00016438,2]
[366082981,1750055451340,-160.885878,0.00016438,2]
[366082982,1750055451349,-151.0,0.00016438,2]
[366082983,1750055451359,-567.965759,0.00016438,2]
[366082984,1750055451368,-151.0,0.00016438,2]
[366082985,1750055451378,-1250.33,0.00016438,2]
[366082986,1750055451388,-151.0,0.00016438,2]
[366082987,1750055451398,-567.965759,0.00016438,2]
[366082988,1750055451408,-160.885878,0.00016438,2]
[366082989,1750055451419,-2220.36,0.00016438,2]
[366082990,1750055451430,-490.0,0.00016438,2]
[366082991,1750055451440,-492.31713965,0.00016438,2]
[366082992,1750055451451,-492.00723609,0.00016438,2]
[366082993,1750055451462,-490.0,0.00016438,2]
[366082994,1750055451472,-300.15643806,0.00016438,2]
[366082995,1750055451483,-799.38,0.00016438,2]
[366082996,1750055451493,-490.0,0.00016438,2]
[366082997,1750055451503,-490.0,0.00016438,2]
[366082998,1750055451514,-490.0,0.00016438,2]
[366082999,1750055451524,-497.03590707,0.00016438,2]
[366083000,1750055451534,-151.0,0.00016438,2]
[366083001,1750055451544,-1440.6,0.00016438,2]
[366083002,1750055451554,-548.44,0.00016438,2]
[366083003,1750055451564,-490.0,0.00016438,2]
[366083004,1750055451574,-490.0,0.00016438,2]
[366083005,1750055451584,-1484.69,0.00016438,2]
[366083006,1750055451594,-490.0,0.00016438,2]
[366083007,1750055451604,-561.92,0.00016438,2]
[366083008,1750055451614,-1088.55,0.00016438,2]
[366083009,1750055451624,-490.0,0.00016438,2]
[366083010,1750055451634,-490.7298205,0.00016438,2]
[366083011,1750055451644,-490.0,0.00016438,2]
[366083012,1750055451654,-464.00078561,0.00016438,2]
[366083013,1750055451664,-1701.99,0.00016438,2]
[366083014,1750055451674,-490.0,0.00016438,2]
[366083015,1750055451683,-490.0,0.00016438,2]
[366083016,1750055451694,-706.12,0.00016438,2]
[366083017,1750055451706,-593.87,0.00016438,2]
[366083018,1750055451716,-1969.98,0.00016438,2]
[366083019,1750055451726,-495.22,0.00016438,2]
[366083020,1750055451736,-494.68379708,0.00016438,2]
[366083021,1750055451748,-2047.14,0.00016438,2]
[366083022,1750055451758,-490.0,0.00016438,2]
[366083023,1750055451768,-490.0,0.00016438,2]
[366083024,1750055451781,-490.0,0.00016438,2]
[366083025,1750055451791,-490.0,0.00016438,2]
[366083026,1750055451801,-1597.75,0.00016438,2]
[366083027,1750055451811,-489.45315941,0.00016438,2]
[366083028,1750055451821,-1431.29,0.00016438,2]
[366083029,1750055451831,-493.7286056,0.00016438,2]
[366083030,1750055451841,-1477.96,0.00016438,2]
[366083031,1750055451850,-491.05454605,0.00016438,2]
[366083032,1750055451860,-490.0,0.00016438,2]
[366083033,1750055451870,-490.0,0.00016438,2]
[366083034,1750055451880,-504.00148004,0.00016438,2]
[366083035,1750055451891,-499.89,0.00016438,2]
[366083036,1750055451901,-490.0,0.00016438,2]
[366083037,1750055451911,-547.06975482,0.00016438,2]
[366083038,1750055451921,-1080.52,0.00016438,2]
[366083039,1750055452059,-174.39409808,0.00016438,2]
[366083040,1750055452069,-523.7,0.00016438,2]
[366083041,1750055452078,-493.78336874,0.00016438,2]
[366083042,1750055452088,-611.69,0.00016438,2]
[366083043,1750055452098,-559.02,0.00016438,2]
[366083044,1750055452108,-1325.97,0.00016438,2]
[366083045,1750055452117,-732.12,0.00016438,2]